Cogmind - Beta 14 @@@ ROGUE MODE // 2024.09.20 @ 18:00:44 Player: Beefox Result: Destroyed by G-34 Mercenary with Small Laser Performance ------------- Evolutions (0) 0 Regions Visited (1) 200 Robots Destroyed (12) 60 Value Destroyed (396) 396 Prototype IDs (0) 0 Alien Tech Used (0) 0 Bonus (0) 0 TOTAL SCORE: 656 Bonus ------- None Cogmind --------- Core Integrity 0/250 Matter 127/300 Energy 149/160 System Corruption 0% Temperature Warning (312) Movement Rolling (215) Ox9 Location -10/Materials Parts ------- > --- POWER (1) -------- Light Nuclear Core > --- PROPULSION (2) --- Wheel > --- UTILITY (2) ------ Huge Storage Unit Improved Targeting Computer > --- WEAPON (2) ------- Particle Gun Shotgun > --- INVENTORY (25) --- Ion Engine Ion Engine Ion Engine Light Treads Light Treads Aluminum Leg Aluminum Leg Wheel Hover Unit Improved Heat Sink Structural Scanner Terrain Scanner Terrain Scanner ECM Suite Light Armor Plating Light Armor Plating Light Armor Plating Tractor Beam Small Laser Small Laser Assault Rifle Light Assault Rifle Light Assault Rifle Shotgun Peak State ------------ > --- POWER ------------ Light Nuclear Core > --- PROPULSION ------- Wheel Wheel > --- UTILITY ---------- Huge Storage Unit Improved Targeting Computer > --- WEAPON ----------- Particle Gun Shotgun > --- INVENTORY -------- Ion Engine Ion Engine Ion Engine Light Treads Light Treads Aluminum Leg Aluminum Leg Wheel Hover Unit Improved Heat Sink Structural Scanner Terrain Scanner Terrain Scanner ECM Suite Light Armor Plating Light Armor Plating Light Armor Plating Tractor Beam Small Laser Small Laser Assault Rifle Light Assault Rifle Light Assault Rifle Shotgun [Rating: 14] Favorites ----------- Power Ion Engine Engine Ion Engine Power Core Light Nuclear Core Propulsion Compact Wheel Treads Light Treads Wheel Compact Wheel Utility Huge Storage Unit Device Structural Scanner Storage Huge Storage Unit Processor Improved Targeting Computer Protection Light Armor Plating Weapon Light Assault Rifle Energy Gun Small Laser Ballistic Gun Light Assault Rifle Build | -11 -10 ------- Run | Yrd Mat Slots Evolved . | . . Power . | . . Propulsion . | . . Utility . | . . Weapon . | . . Parts Attached 24 | 6 18 Power 2 | 1 1 Engine 1 | 1 . Core 1 | . 1 Reactor . | . . Propulsion 9 | 2 7 Treads 4 | . 4 Leg . | . . Wheel 5 | 2 3 Hover . | . . Flight . | . . Utility 6 | 1 5 Device 1 | . 1 Storage 2 | 1 1 Processor 1 | . 1 Hackware . | . . Protection 2 | . 2 Artifact . | . . Weapon 7 | 2 5 Energy Gun 2 | . 2 Energy Cannon . | . . Ballistic Gun 5 | 2 3 Ballistic Cannon . | . . Launcher . | . . Special Weapon . | . . Impact Weapon . | . . Slashing Weapon . | . . Piercing Weapon . | . . Special Melee Weapon . | . . Unidentified Prototypes . | . . Parts Lost 4 | . 4 Power . | . . Propulsion 3 | . 3 Utility 1 | . 1 Weapon . | . . Highest Loss Streak 1 | . 1 To Critical Strikes . | . . Average Slot Usage (%) 90 | . 90 Engine 12 | . 12 Core 1 | . 1 Wheel 18 | . 18 Device 2 | . 2 Storage 14 | . 14 Protection 10 | . 10 Energy Gun 3 | . 3 Ballistic Gun 24 | . 24 Peak Build Rating 14 | 6 14 Average Rating 7 | 4 8 On Entrance 3 | . 6 Naked Turns . | . . Heaviest Build 93 | 12 93 Greatest Support 40 | 32 40 Greatest Overweight (x) 9 | . 9 Average Overweight (x) 3 | . 4 Largest Inventory Capacity 25 | 8 25 Average Capacity 22 | 7 24 Most Carried 25 | 5 25 Average Carried 12 | 2 14 Final Capacity 25 | 8 25 Final Carried 24 | 4 24 Class Distribution -------------------- 100% | Mutant Dominant Class ---------------- Mutant | -10/Materials Resources | -11 -10 ----------- Run | Yrd Mat Matter Collected 444 | 170 274 Remotely . | . . Salvage Created 443 | . 443 Parts 22 | . 22 Haulers Intercepted . | . . Recyclers Shooed . | . . Parts Field Recycled . | . . Retrieved Matter . | . . Parts Self-Destructed . | . . Prevented . | . . Kills | -11 -10 ------- Run | Yrd Mat Combat Hostiles Destroyed 10 | . 10 Guns 10 | . 10 Classes Destroyed 3 | . 3 Worker 1 | . 1 Watcher 1 | . 1 Grunt 10 | . 10 Best Kill Streak 5 | . 5 Combat Bots Only 4 | . 4 Max Kills in Single Turn 2 | . 2 Gunslinging 1 | . 1 Exploded . | . . Melee . | . . Uniques/NPCs Destroyed . | . . Combat | -11 -10 -------- Run | Yrd Mat Hostile Shots Fired 93 | . 93 Missed 23 | . 23 Damage Taken 860 | . 860 Core 251 | . 251 Absorbed by Shields . | . . Core Remaining (%) 100 | 100 . Volleys Fired 39 | . 39 Largest 2 | . 2 Hottest 88 | . 88 Shots Fired 78 | . 78 Gun 78 | . 78 Cannon . | . . Launcher . | . . Special . | . . Kinetic 66 | . 66 Thermal 12 | . 12 Explosive . | . . Electromagnetic . | . . Robot Hit Streak 13 | . 13 Robot Miss Streak 3 | . 3 Penetration Max . | . . Secondary Targets 2 | . 2 Max Gunslinging Chain 1 | . 1 Shots Hit Robots 55 | . 55 Core Hits 29 | . 29 Critical Kills . | . . Critical Parts Destroyed 1 | . 1 Critical Strikes 1 | . 1 Destroy 1 | . 1 Melee Attacks . | . . Impact . | . . Slashing . | . . Piercing . | . . Sneak Attacks . | . . Combat Hostiles . | . . Follow-up Attacks . | . . Damage Inflicted 833 | . 833 Guns 833 | . 833 Cannons . | . . Explosions . | . . Melee . | . . Ramming . | . . Kinetic 695 | . 695 Thermal 138 | . 138 Explosive . | . . Electromagnetic . | . . Impact . | . . Slashing . | . . Piercing . | . . Highest Corruption . | . . Average Corruption . | . . Corruption Purged . | . . Corruption Blocked . | . . Overload Shots . | . . Overflow Damage . | . . Projectiles . | . . Explosions . | . . Melee . | . . Knockbacks . | . . Impact . | . . Kinetic . | . . Secondary . | . . Self-Inflicted Damage . | . . Shots . | . . Rammed . | . . Targets Rammed . | . . Kicked . | . . Crushed . | . . Highest Temperature 306 | . 306 Average Temperature 69 | . 69 Received Heat Transfer 477 | . 477 Effects 1 | . 1 Matter Decay 1 | . 1 Siege Activations . | . . Robots Corrupted . | . . Combat Hostiles . | . . Parts Fried . | . . Impact Corruptions . | . . Robots Melted . | . . Combat Hostiles . | . . Parts Melted 1 | . 1 Heat Transferred 322 | . 322 Parts Sabotaged . | . . Parts Stolen . | . . Parts Stripped . | . . Power Chain Reactions . | . . Alert | -11 -10 ------- Run | Yrd Mat Peak Influence 124 | . 124 Initial . | . . Average 49 | . 56 Maximum Alert Level . | . . Low Security (%) 100 | 100 100 Level 1 . | . . Level 2 . | . . Level 3 . | . . Level 4 . | . . Level 5 . | . . High Security . | . . Max Security . | . . Squads Dispatched 1 | . 1 Investigation 1 | . 1 Extermination . | . . Reinforcement . | . . Assault . | . . Garrison . | . . Intercept . | . . Searches Triggered . | . . Construction Impeded . | . . Haulers Reinforced . | . . Active Scanning Responses . | . . Cargo Convoy Interrupts . | . . Stealth | -11 -10 --------- Run | Yrd Mat Distress Signals . | . . Communications Jammed . | . . Distress Signals . | . . Times Spotted 14 | . 14 Peak Tracking Total 4 | . 4 Tactical Retreats . | . . Traps | -11 -10 ------- Run | Yrd Mat Traps Triggered 1 | . 1 Indirectly . | . . Trap Hack Attempts . | . . Triggered . | . . Disarmed . | . . Reprogrammed . | . . Reused . | . . Traps Extracted . | . . Installed . | . . Triggered . | . . Machines | -11 -10 ---------- Run | Yrd Mat Machines Disabled . | . . Max in Single Turn . | . . Machines Repaired . | . . Machines Dismantled . | . . Machines Sabotaged . | . . Overloaded Fab Kills . | . . Hacking | -11 -10 --------- Run | Yrd Mat Machines Accessed 3 | . 3 Terminals 2 | . 2 Fabricators . | . . Repair Stations . | . . Recycling Units 1 | . 1 Scanalyzers . | . . Garrison Access . | . . Total Hacks 9 | . 9 Successful 4 | . 4 Failed 5 | . 5 Catastrophic . | . . Database Lockouts . | . . Manual . | . . Terminals 6 | . 6 Fabricators . | . . Repair Stations . | . . Recycling Units 3 | . 3 Scanalyzers . | . . Garrison Access . | . . Terminal Hacks 2 | . 2 Branch Access Points 1 | . 1 Locate Traps 1 | . 1 Fabricator Hacks . | . . Repair Station Hacks . | . . Recycling Unit Hacks 2 | . 2 Report Inventory 1 | . 1 Retrieve Components 1 | . 1 Scanalyzer . | . . Garrison Access Hacks . | . . Unauthorized Hacks . | . . Terminals . | . . Fabricators . | . . Repair Stations . | . . Recycling Units . | . . Scanalyzers . | . . Garrison Access . | . . Data Cores Recovered . | . . Used . | . . Hacking Detections 2 | . 2 Full Trace Events . | . . Feedback Events . | . . Feedback Blocked . | . . Robot Schematics Acquired . | . . Robots Built . | . . Authchips . | . . Time . | . . Total Robot Build Rating . | . . Part Schematics Acquired . | . . Parts Built . | . . Authchips . | . . Time . | . . Total Part Build Rating . | . . Parts Repaired . | . . Time . | . . Parts Recycled . | . . Recycled Matter . | . . Retrieved Matter . | . . Retrieved Components 5 | . 5 Parts Scanalyzed . | . . Part Schematics Acquired . | . . Parts Damaged . | . . Bothacking | -11 -10 ------------ Run | Yrd Mat Used RIF Installer . | . . Robots Hacked . | . . Non-combat . | . . Combat . | . . Robot Hacks Applied . | . . Relay Couplers Released . | . . Fabnet Peak Effective % . | . . Robots Rewired . | . . Allies Hacked . | . . Hacks Repelled . | . . Allies | -11 -10 -------- Run | Yrd Mat Total Allies . | . . Largest Group . | . . Highest-Rated Group . | . . Highest-Rated Ally . | . . Total Orders . | . . Ally Attacks . | . . Total Damage . | . . Kills . | . . Allies Corrupted . | . . Allies Melted . | . . Intel | -11 -10 ------- Run | Yrd Mat Robot Analysis Total . | . . Derelict Logs Recovered . | . . Drone Launches . | . . Drone Recoveries . | . . Exploration | -11 -10 ------------- Run | Yrd Mat Turns Passed 968 | 114 854 Spaces Moved 501 | 91 410 Core 13 | 13 . Treads 10 | . 10 Legs . | . . Wheels 478 | 78 400 Hover . | . . Flight . | . . Fastest Speed 50 | 50 100 Average Speed 152 | 92 165 Slowest Speed 320 | 100 320 Overloaded Moves . | . . Propulsion Burnouts . | . . Robots Hopped . | . . Cave-ins Triggered . | . . Exploration Rate (%) 30 | 6 55 Regions Visited 1 Branch Regions . Pre-discovered Areas . | . . Known Exits Taken . | . . Unknown Exits Taken 1 | 1 . Scrap Searched . | . . Spaces Dug . | . . Terrain Destroyed . | . . Melee . | . . Projectile . | . . AOE . | . . Terrain Rammed . | . . Walls Destroyed . | . . Machines Disabled . | . . Actions | -11 -10 --------- Run | Yrd Mat Total 638 | 120 518 Wait 27 | 14 13 Move 500 | 90 410 Hop . | . . Pick Up 35 | 10 25 Fast Attach . | . . Attach 22 | 6 16 Detach 12 | . 12 Swap 2 | . 2 Drop 1 | . 1 Fire 39 | . 39 Melee . | . . Ram . | . . Kick . | . . Crush . | . . Escape Stasis . | . . Rewire . | . . Trap . | . . Miscellaneous . | . . Route ------- -11/Scrapyard -10/Materials (discovered 4 exits: [*Mat x2] / *Min x2) History --------- Turn | Location | Event 32 | -11/Scrapyard | Discovered new exit (range 15) 115 | -11/Scrapyard | Entered Materials 290 | -10/Materials | Discovered new exit (range 8) 300 | -10/Materials | Build established: Mutant 685 | -10/Materials | Identified exit to Mines 733 | -10/Materials | Discovered new exit (range 14) 909 | -10/Materials | Core integrity fell below 50% 943 | -10/Materials | Discovered new exit (range 14) 951 | -10/Materials | Core integrity fell below 20% 969 | -10/Materials | Destroyed by G-34 Mercenary with Small Laser Last Messages --------------- Acquired 50 matter. U-05 Engineer works on Atomic Centrifuge. K-01 Serf collects debris. Acquired Imp. Heat Sink. K-01 Serf collects debris. U-05 Engineer completes Atomic Centrifuge. K-01 Serf collects debris. EXIT=FOUND K-01 Serf collects debris. Acquired 27 matter. K-01 Serf collects debris. Wheel destroyed. Atomic Centrifuge disabled. K-01 Serf collects debris. M-13 Machinist destroyed. K-01 Serf cleans the Atomic Centrifuge. Lgt. Nuclear Core melted. G-47 Trooper destroyed. K-01 Serf cleans the Atomic Centrifuge. Overheating: Matter decay (-14). Map ----- +----------------------------------------------------+ | ???????????????????# ## # """ #######+# | | ???????????????????# ## """ # """ ######## | | ???????????????????# ## """ # """ ######## | | ???????????????????# ## """ # + # | | ???????????????????# ## # #""" # " | | ???????????????????# ########### #""" # " | | ???????????????????# #???????####+#######""" # " | | ???????????????????? ????????# ### # | | ???????????????????? ????????# ! ### #! | | ???????????????????? ????????# !* ############ | | ???????????????????? ????????# *% # | | ???????????????????? ????????# #????"" """ | | ??????????????????#? ????????# """#????"" """ | | ??????????????????# ?##?????# R"#????"" """ | | ??????????????????? ?# ????# """#???? | | ???????????????????? ?# ????# #?? [ | | ???????????????????? #] ????##################### | | ??????????????????#?? # ???????# """"" ######## | | ??????????????????# ??/ =???????# ""T"" # | | ???????????????#### ?# =???????# # !!"" | | ??????????????##! u#[%???????# # Y" | | ??????????????#! ##g##############+### "" | | ??????????????#! !% # | | ???????????????! * + | | ??????????????#! "" # """ | | ???????????????#! """@ ##+######### # """ | | ?????????????????## """k # ???# # """ | | ??????????????????# = # """ ""???# # """ | | ??????????????????# + """ """??# # | | ????????????????#"" """ # """ """ ?# ######## | | ????????????????#"T """ # ?# #???# #? | | ????????????????#"" """ ###+######## #?###+## | | ????????????????### ??????????# ### | | ??????????????????# ??????????# + """ | | ??????????????????# """ ?????????# ### """ | | ??????????????????? """ ?????????#####?# """ | | ???????????????????? """ ???????????????# | | ??????????????????????? ??????????????# | | ???????????????????????? ??????????????###### | | ???????????????????????? ???????????????????? | | ????????????????????????##+##